bitfinex/quotes_SOLUSD_20250708
["timestamp","ask_amount","ask_price","bid_price","bid_amount"]
[1751987941652,1.5297,151.04,151.03,0.03]
[1751987941848,26.0,151.01,150.96,0.03]
[1751987942036,5.90652833,150.97,150.96,0.03]
[1751987943364,12.53036087,150.97,150.96,0.03]
[1751987946785,37.08653806,150.97,150.96,0.03]
[1751987947675,18.4368892,150.97,150.96,0.03]
[1751987947979,12.53036087,150.97,150.96,0.03]
[1751987948158,18.4368892,150.97,150.96,0.03]
[1751987949152,37.08653806,150.97,150.96,0.03]
[1751987949351,44.37659989,150.97,150.96,0.03]
[1751987951072,44.37659989,150.97,150.93,0.03]
[1751987951073,26.0,150.94,150.93,0.03]
[1751987951273,65.64652833,150.94,150.93,0.03]
[1751987951450,72.27167739,150.94,150.93,0.03]
[1751987957392,90.92132625,150.94,150.93,0.03]
[1751987958766,72.27167739,150.94,150.93,0.03]
[1751987960076,46.27167739,150.94,150.93,0.03]
[1751987960481,72.27167739,150.94,150.93,0.03]
[1751987960669,72.39654944,150.94,150.93,0.03]
[1751987960879,65.0461983,150.94,150.93,0.03]
[1751987961088,71.3625983,150.94,150.93,1e-08]
[1751987961382,80.25259392,150.94,150.93,1e-08]
[1751987962386,80.25259392,150.94,150.86,0.2]
[1751987962387,26.0,150.9,150.86,0.2]
[1751987962582,5.90652833,150.87,150.86,0.2]
[1751987965877,12.5347513,150.87,150.86,0.2]
[1751987966076,46.2947513,150.87,150.86,0.2]
[1751987966405,39.66652833,150.87,150.86,0.2]
[1751987966778,46.2947513,150.87,150.86,0.2]
[1751987967403,148.1,150.9,150.86,0.2]
[1751987967589,5.90652833,150.87,150.86,0.2]
[1751987967786,18.64964886,150.92,150.86,0.2]
[1751987967787,149.85617205,150.94,150.86,6.82866233]
[1751987968107,31.90652833,150.9,150.86,12.73519066]
[1751987968281,5.90652833,150.89,150.86,6.82866233]
[1751987970106,31.90652833,150.9,150.86,6.82866233]
[1751987970402,5.90652833,150.89,150.86,6.82866233]
[1751987972901,33.76,150.93,150.88,5.90652833]
[1751987973201,13.19784457,150.92,150.89,6.62734442]
[1751987973391,5.90652833,150.92,150.89,6.62734442]
[1751987974084,13.19874678,150.93,150.89,6.62734442]
[1751987974280,7.29221845,150.93,150.89,12.53387275]
[1751987974480,7.29221845,150.93,150.9,5.90652833]
[1751987974681,0.12487205,150.94,150.89,12.53387275]
[1751987974875,7.42166212,150.94,150.9,5.90652833]
[1751987975107,13.32819045,150.94,150.89,12.53387275]
[1751987975694,5.90652833,150.93,150.89,12.53387275]
[1751987976101,13.32819045,150.94,150.9,5.90652833]
[1751987976618,7.29679007,150.93,150.9,5.90652833]
[1751987976798,0.12487205,150.94,150.92,12.31002833]
[1751987977000,0.12487205,150.94,150.93,5.90652833]
[1751987977512,0.12487205,150.94,150.93,12.53211635]
[1751987979002,0.12487205,150.94,150.92,6.4035]
[1751987979323,0.12487205,150.94,150.93,5.90652833]
[1751987980039,0.12487205,150.94,150.89,5.90652833]
[1751987980040,6.03140038,150.94,150.89,5.90652833]
[1751987980197,5.90652833,150.92,150.88,39.52942833]
[1751987980597,0.14548934,150.9,150.88,7.6229]
[1751987981743,7.47377282,150.9,150.88,7.6229]
[1751987981920,0.14548934,150.9,150.88,7.6229]
[1751987983832,0.14548934,150.9,150.88,13.52942833]
[1751987984202,0.14548934,150.9,150.88,7.6229]
[1751987986821,7.35406164,150.89,150.88,7.6229]
[1751987987030,7.35406164,150.89,150.86,0.2]
[1751987987202,7.35406164,150.88,150.86,0.2]
[1751987987520,7.35406164,150.87,150.86,0.2]
[1751987988499,13.26058997,150.87,150.86,0.2]
[1751987989103,19.88881294,150.87,150.86,0.2]
[1751987992905,7.35406164,150.87,150.86,0.2]
[1751987993243,5.90652833,150.89,150.86,0.2]
[1751987993406,7.35023243,150.88,150.86,0.2]
[1751987994031,13.25676076,150.89,150.86,0.2]
[1751987994332,7.35074211,150.88,150.86,0.2]
[1751987994532,5.90652833,150.89,150.86,0.2]
[1751987994734,13.25759875,150.89,150.86,0.2]
[1751987994949,5.90652833,150.88,150.86,0.2]
[1751987995253,13.25775069,150.88,150.86,0.2]
[1751987995542,6.6273966,150.89,150.86,0.2]
[1751987995751,5.90652833,150.88,150.86,0.2]
[1751987995948,5.90652833,150.87,150.86,0.2]
[1751987997122,12.5347513,150.87,150.86,0.2]
[1751987998329,19.88317152,150.87,150.86,0.2]
[1751987999021,19.8818882,150.87,150.86,0.2]
[1751988000613,20.01333636,150.87,150.86,0.2]
[1751988001933,0.13144816,150.87,150.86,12.73519066]
[1751988002164,0.13144816,150.87,150.86,39.41973952]
[1751988003420,0.14041322,150.88,150.86,71.32626785]
[1751988003627,0.14041322,150.88,150.87,30.46270552]
[1751988004644,0.14041322,150.88,150.87,37.09092849]
[1751988005645,0.14041322,150.88,150.87,31.18440016]
[1751988012254,0.14041322,150.88,150.87,37.09092849]
[1751988012845,0.14041322,150.88,150.87,31.18440016]
[1751988013244,0.14041322,150.88,150.87,37.09092849]
[1751988014379,1e-08,150.88,150.87,37.09092849]
[1751988014533,1e-08,150.89,150.87,18.44127963]
[1751988014740,1e-08,150.89,150.88,57.12548388]
[1751988016163,1e-08,150.89,150.88,63.75326754]
[1751988016955,1e-08,150.89,150.88,97.51326754]
[1751988017768,1e-08,150.89,150.88,51.27743252]
[1751988017946,1e-08,150.89,150.88,57.18396085]
[1751988018141,1e-08,150.89,150.88,90.94396085]
[1751988019170,1e-08,150.89,150.88,38.53431199]
[1751988019473,1e-08,150.89,150.88,72.29431199]
[1751988020657,0.13902537,150.89,150.88,72.29431199]
[1751988021271,0.13902536,150.89,150.88,72.29431199]
[1751988021597,0.13902536,150.89,150.88,90.94396085]
[1751988022179,0.13902536,150.89,150.88,96.85048918]
[1751988023197,0.13902536,150.89,150.88,85.03743252]
[1751988023507,0.13902536,150.89,150.88,96.85048918]
[1751988023803,0.13902536,150.89,150.88,90.94396085]
[1751988024578,0.13902536,150.89,150.88,96.85048918]
[1751988026001,0.13902536,150.89,150.88,90.94396085]
[1751988028200,0.13902536,150.89,150.88,96.85048918]
[1751988028975,0.13902536,150.89,150.88,85.03743252]
[1751988029202,0.13902536,150.89,150.88,96.85048918]
[1751988030606,0.13902536,150.89,150.88,97.51326754]
[1751988031402,0.13902536,150.89,150.88,63.75326754]
[1751988031591,0.13902536,150.89,150.88,97.49326754]
[1751988039829,0.13443993,150.9,150.89,18.64964886]
[1751988040124,0.13443993,150.9,150.89,24.55617719]
[1751988040630,0.27786265,150.9,150.89,24.55617719]
[1751988041214,0.14342272,150.9,150.89,24.55617719]
[1751988041411,0.14342272,150.9,150.89,39.64652833]
[1751988041722,0.14342272,150.9,150.88,5.90652833]
[1751988041900,0.14342272,150.9,150.87,33.74]
[1751988042106,0.14342272,150.9,150.87,39.64652833]
[1751988043039,0.14342272,150.9,150.87,5.90652833]
[1751988043531,0.14342272,150.9,150.87,39.64652833]
[1751988043927,0.14342272,150.9,150.87,46.27466577]
[1751988045132,0.14342272,150.9,150.87,12.53466577]
[1751988045304,0.14342272,150.9,150.86,6.82848545]
[1751988045503,0.14342272,150.9,150.87,5.90652833]
[1751988046314,13.28348495,150.89,150.86,0.2]
[1751988046508,13.28348495,150.88,150.86,0.2]
[1751988046705,7.37695662,150.87,150.86,0.2]
[1751988048224,0.14342272,150.9,150.86,12.73519066]
[1751988048424,7.37788893,150.89,150.86,12.73519066]
[1751988048597,7.37788893,150.89,150.87,5.90652833]
[1751988049222,7.37788893,150.89,150.86,6.82866233]
[1751988049421,7.37788893,150.89,150.87,5.90652833]
[1751988050198,0.14342272,150.9,150.87,5.90652833]
[1751988050798,7.37557987,150.89,150.87,5.90652833]
[1751988051231,0.14342272,150.9,150.87,5.90652833]
[1751988051649,0.14342272,150.9,150.87,12.53460585]
[1751988052143,0.14342272,150.9,150.87,5.90652833]
[1751988052538,6.77037419,150.9,150.87,5.90652833]
[1751988052740,12.67690252,150.9,150.86,6.10652833]
[1751988052922,13.28016506,150.89,150.86,0.2]
[1751988053519,5.90652833,150.88,150.86,0.2]
[1751988053725,7.37363673,150.88,150.86,0.2]
[1751988053928,13.28016506,150.87,150.86,0.2]
[1751988054127,5.90652833,150.87,150.86,0.2]
[1751988054331,13.28016506,150.87,150.86,0.2]
[1751988055153,19.90838803,150.87,150.86,0.2]
[1751988060671,20.03425758,150.87,150.86,0.2]
[1751988063173,26.0,150.85,150.84,0.2]
[1751988063347,73.04016506,150.85,150.84,0.2]
[1751988064358,79.66926681,150.85,150.84,0.2]
[1751988064686,7.37363673,150.85,150.84,0.2]
[1751988064842,148.22586955,150.87,150.84,6.10652833]
[1751988065049,0.12586955,150.87,150.84,6.10652833]
[1751988065756,6.75412806,150.87,150.84,0.2]
[1751988065971,0.12586955,150.87,150.84,6.10652833]
[1751988066187,0.12586955,150.87,150.86,5.90652833]
[1751988066766,0.12586955,150.87,150.84,0.2]
[1751988067074,5.90652833,150.85,150.84,0.2]
[1751988068473,12.53563008,150.85,150.84,0.2]
[1751988069812,6.62910175,150.85,150.84,0.2]
[1751988070269,6.03239788,150.87,150.84,0.2]
[1751988070475,6.03239788,150.87,150.84,6.10652833]
[1751988070476,6.75428962,150.87,150.84,6.10652833]
[1751988070671,6.75428962,150.87,150.84,0.2]
[1751988070992,6.75428962,150.87,150.84,6.10652833]
[1751988071180,0.12586955,150.87,150.84,6.10652833]
[1751988071384,6.75412412,150.87,150.84,6.10652833]
[1751988071588,12.66065245,150.87,150.84,0.2]
[1751988071782,5.90652833,150.86,150.84,0.2]
[1751988072500,39.68652833,150.85,150.84,0.2]
[1751988072795,46.31563008,150.85,150.84,0.2]
[1751988073174,53.65447925,150.85,150.84,0.2]
[1751988073370,53.65447925,150.85,150.83,0.2]
[1751988073371,46.31563008,150.85,150.83,0.2]
[1751988073596,5.90652833,150.84,150.83,0.2]
[1751988074597,13.96338653,150.84,150.83,0.2]
[1751988074805,19.86991486,150.84,150.83,0.2]
[1751988076008,26.0,150.82,150.81,0.2]
[1751988076222,65.68652833,150.82,150.81,0.2]
[1751988077231,72.31694869,150.82,150.81,0.2]
[1751988080727,72.43691781,150.82,150.81,0.2]
[1751988082033,79.76302004,150.82,150.81,0.2]
[1751988084027,20.15924886,150.81,150.8,1e-08]
[1751988084235,39.29840775,150.81,150.8,1e-08]
[1751988084406,44.64964886,150.78,150.77,1e-08]
[1751988084725,97.79107942,150.78,150.77,1e-08]
[1751988085724,91.70227942,150.78,150.77,1e-08]
[1751988085932,98.33445875,150.78,150.77,1e-08]
[1751988086329,64.51445875,150.78,150.77,1e-08]
[1751988086511,79.70480989,150.78,150.77,1e-08]
[1751988087133,45.86480989,150.78,150.77,1e-08]
[1751988087634,79.70480989,150.78,150.77,1e-08]
[1751988088032,98.35445875,150.78,150.77,1e-08]
[1751988090610,92.44793042,150.78,150.77,1e-08]
[1751988090830,98.35445875,150.78,150.77,1e-08]
[1751988092214,79.70480989,150.78,150.77,1e-08]
[1751988093018,98.35445875,150.78,150.77,1e-08]
[1751988093823,92.44793042,150.78,150.77,1e-08]
[1751988094037,98.35445875,150.78,150.77,1e-08]
[1751988098943,98.43445875,150.78,150.77,1e-08]
[1751988099158,19.86480989,150.78,150.77,1e-08]
[1751988099329,53.78480989,150.78,150.77,1e-08]
[1751988099529,79.78480989,150.78,150.77,1e-08]
[1751988099759,53.78480989,150.78,150.77,1e-08]
[1751988100340,39.95828156,150.78,150.77,1e-08]
[1751988100543,79.78480989,150.78,150.77,1e-08]
[1751988100743,79.90750717,150.78,150.77,1e-08]
[1751988102865,74.00097884,150.78,150.77,1e-08]
[1751988103168,79.90750717,150.78,150.77,1e-08]
[1751988103662,0.12269728,150.78,150.77,5.90652834]
[1751988104640,0.12269728,150.78,150.77,12.53914756]
[1751988104840,0.12269728,150.78,150.77,20.47384756]
[1751988107080,0.12269728,150.78,150.77,13.84122834]
[1751988107443,0.12269728,150.78,150.77,7.93470001]
[1751988108066,0.12269728,150.78,150.77,13.84122834]
[1751988109751,0.12269728,150.78,150.77,7.93470001]
[1751988109950,0.12269728,150.78,150.77,13.84122834]
[1751988110878,0.12269728,150.78,150.77,20.47384756]
[1751988111230,0.12269728,150.78,150.77,13.84122834]
[1751988111372,0.12269728,150.78,150.77,20.47384756]
[1751988111576,0.12269728,150.78,150.77,13.84122834]
[1751988112302,0.00318592,150.79,150.77,7.93470001]
[1751988112609,0.00318592,150.79,150.77,13.84122834]
[1751988112903,0.00318592,150.79,150.78,5.90652833]
[1751988113312,0.00318592,150.79,150.77,13.84122834]
[1751988114279,0.00318592,150.79,150.77,7.93470001]
[1751988114485,5.90652833,150.78,150.77,1e-08]
[1751988115128,7.34127745,150.79,150.77,1e-08]
[1751988115327,5.90971425,150.79,150.77,1e-08]
[1751988115729,6.63217933,150.78,150.77,1e-08]
[1751988117227,6.63501526,150.79,150.77,1e-08]
[1751988117402,0.00318592,150.79,150.77,5.90652834]
[1751988117605,6.63500885,150.79,150.77,5.90652834]
[1751988118113,6.63500885,150.79,150.77,1e-08]
[1751988119340,12.54153718,150.79,150.77,1e-08]
[1751988119539,13.25284637,150.78,150.77,1e-08]
[1751988119834,19.8850257,150.78,150.77,1e-08]
[1751988120609,20.02712641,150.78,150.77,1e-08]
[1751988124835,7.48841875,150.78,150.77,1e-08]
[1751988125037,6.77428004,150.78,150.77,1e-08]
[1751988125341,0.14210071,150.78,150.77,5.90652834]
[1751988125512,0.20210071,150.78,150.77,1e-08]
[1751988125709,0.20210071,150.78,150.77,5.90652834]
[1751988125942,6.83428004,150.78,150.77,1e-08]
[1751988126121,14.18133117,150.78,150.77,1e-08]
[1751988126322,0.20210071,150.78,150.77,1e-08]
[1751988126534,12.74080837,150.78,150.77,1e-08]
[1751988126844,20.08885344,150.78,150.77,1e-08]
[1751988131026,168.18885344,150.78,150.77,1e-08]
[1751988132421,186.8385023,150.78,150.77,1e-08]
[1751988132647,38.7385023,150.78,150.77,1e-08]
[1751988132931,26.0,150.75,150.72,0.2]
[1751988133247,5.90652833,150.73,150.72,0.2]
[1751988133435,47.2545734,150.73,150.72,0.2]
[1751988133837,41.34804507,150.73,150.72,0.2]
[1751988135150,53.88895275,150.73,150.72,0.2]
[1751988140733,54.02647223,150.73,150.72,0.2]
[1751988141435,46.67842716,150.73,150.72,0.2]
[1751988142163,54.02092865,150.73,150.72,0.2]
[1751988143845,98.67057751,150.73,150.72,0.2]
[1751988144660,115.25652589,150.73,150.67,1.6512]
[1751988144857,5.90652833,150.69,150.67,1.6512]
[1751988145042,33.98,150.69,150.67,1.6512]
[1751988145245,39.86652833,150.7,150.67,1.6512]
[1751988145488,5.90652833,150.69,150.67,1.6512]
[1751988146576,6.63658083,150.68,150.67,1.6512]
[1751988147068,33.96,150.7,150.67,1.6512]
[1751988147445,33.96,150.71,150.68,5.90652833]
[1751988147646,188.69500764,150.72,150.68,5.90652833]
[1751988147946,188.69500764,150.72,150.69,5.90652833]
[1751988148157,0.13751948,150.73,150.71,5.90652833]
[1751988148366,0.13751948,150.73,150.72,5.90652833]
[1751988148556,0.13751948,150.73,150.71,5.90652833]
[1751988149258,0.13751948,150.73,150.69,12.98470277]
[1751988149444,6.77200077,150.73,150.7,5.90652833]
[1751988149845,40.75200077,150.73,150.69,6.3489]
[1751988150150,5.90652833,150.72,150.69,6.3489]
[1751988150464,46.6585291,150.73,150.69,6.3489]
[1751988150846,5.90652833,150.72,150.69,6.3489]
[1751988151163,5.90652833,150.72,150.67,1.6512]
[1751988151164,5.90652833,150.71,150.67,7.55772833]
[1751988151754,5.90652833,150.71,150.67,1.6512]
[1751988151959,39.88652833,150.71,150.67,7.55772833]
[1751988152976,6.63570006,150.7,150.67,7.55772833]
[1751988153471,12.54222839,150.7,150.67,1.6512]
[1751988154065,6.63570006,150.7,150.67,1.6512]
[1751988154250,12.54222839,150.7,150.67,1.6512]
[1751988154570,33.98,150.71,150.68,5.90652833]
[1751988154758,40.61528018,150.71,150.68,5.90652833]
[1751988154961,6.63481953,150.72,150.68,5.90652833]
[1751988155163,12.54134786,150.72,150.68,5.90652833]
[1751988155360,12.54134786,150.72,150.67,7.55772833]
[1751988155875,12.54134786,150.72,150.68,5.90652833]
[1751988156205,6.63481953,150.72,150.68,5.90652833]
[1751988156778,6.63481953,150.72,150.69,5.90652833]
[1751988157474,6.63481953,150.72,150.67,8.28817961]
[1751988157775,6.63481953,150.72,150.69,5.90652833]
[1751988158779,40.73209716,150.73,150.69,5.90652833]
[1751988158981,0.13751948,150.73,150.71,5.90652833]
[1751988159157,7.48225718,150.73,150.71,5.90652833]
[1751988159479,0.13751948,150.73,150.72,5.90652833]
[1751988160663,0.26497489,150.73,150.72,5.90652833]
[1751988160846,0.26497489,150.73,150.72,12.54134786]
[1751988161049,0.26497489,150.73,150.72,5.90652833]
[1751988161252,0.12745541,150.73,150.72,5.90652833]
[1751988162161,0.12745541,150.73,150.71,12.32972833]
[1751988162866,0.12745541,150.73,150.72,5.90652833]
[1751988163879,0.12745541,150.73,150.71,13.05833098]
[1751988164178,0.12745541,150.73,150.72,5.90652833]
[1751988164755,0.12745541,150.73,150.71,13.05833098]
[1751988164955,0.12745541,150.73,150.72,5.90652833]
[1751988165171,0.12745541,150.73,150.71,13.05833098]
[1751988165481,0.12745541,150.73,150.72,5.90652833]
[1751988165977,0.12745541,150.73,150.72,26.20057719]
[1751988166274,0.12745541,150.73,150.72,32.10710552]
[1751988166954,0.12745541,150.73,150.72,38.74192505]
[1751988169563,0.18745541,150.73,150.72,38.74192505]
[1751988171683,0.18745541,150.73,150.72,32.83539672]
[1751988179787,0.18745541,150.73,150.72,26.20057719]
[1751988180173,0.18745541,150.73,150.72,7.55092833]
[1751988180585,0.18745541,150.73,150.72,14.18574786]
[1751988180888,0.32249183,150.73,150.72,7.55092833]
[1751988181299,0.19503642,150.73,150.72,7.55092833]
[1751988181468,0.19503642,150.73,150.72,1.6444]
[1751988181662,0.19503642,150.73,150.72,7.55092833]
[1751988183195,0.19503642,150.73,150.72,32.83539672]
[1751988185392,0.19503642,150.73,150.72,7.55092833]
[1751988185600,0.19503642,150.73,150.72,5.90652833]
[1751988186098,0.19503642,150.73,150.71,5.90652833]
[1751988187994,0.19503642,150.73,150.72,5.90652833]
[1751988190670,0.19503642,150.73,150.69,40.51594471]
[1751988190886,0.19503642,150.73,150.72,5.90652833]
[1751988191801,0.19503642,150.73,150.72,5.93652833]
[1751988192690,0.19503642,150.73,150.72,12.57134786]
[1751988193975,0.19503642,150.73,150.72,31.22099672]
[1751988195613,0.19503642,150.73,150.72,5.93652833]
[1751988195920,0.19503642,150.73,150.72,0.03]
[1751988195921,6.82941577,150.73,150.72,0.03]
[1751988196102,12.7359441,150.73,150.72,0.03]
[1751988196683,20.0760668,150.73,150.72,0.03]
[1751988198313,7.53515912,150.73,150.72,0.03]
[1751988198706,14.16953847,150.73,150.72,0.03]
[1751988199096,20.0760668,150.73,150.72,0.03]
[1751988200802,20.20732767,150.73,150.72,0.03]
[1751988201388,20.07229125,150.73,150.72,0.03]
[1751988202484,46.15566844,150.73,150.72,1e-08]
[1751988202805,40.24914011,150.73,150.72,1e-08]
[1751988206504,74.16914011,150.73,150.72,1e-08]
[1751988207407,55.51949125,150.73,150.72,1e-08]
[1751988207810,203.61949125,150.73,150.72,1e-08]
[1751988208319,203.61152513,150.73,150.72,1e-08]
[1751988210090,168.16432513,150.73,150.72,1e-08]
[1751988210290,202.08432513,150.73,150.72,1e-08]
[1751988212395,14.1577968,150.73,150.72,1e-08]
[1751988212606,0.19126087,150.73,150.72,1e-08]
[1751988213612,0.19126087,150.73,150.72,5.90652834]
[1751988214537,0.19126087,150.73,150.72,12.54134787]
[1751988217606,0.19126087,150.73,150.72,18.4478762]
[1751988218104,0.19126087,150.73,150.72,12.54134787]
[1751988220611,0.19126087,150.73,150.72,1e-08]
[1751988220813,0.31879918,150.73,150.72,1e-08]
[1751988221101,6.95317853,150.73,150.72,1e-08]
[1751988221296,6.82191766,150.73,150.72,1e-08]
[1751988223223,0.18753831,150.73,150.72,1e-08]
[1751988223426,0.18753831,150.73,150.72,5.90652834]
[1751988225224,0.18753831,150.73,150.72,12.54134787]
[1751988240730,0.30876321,150.73,150.72,12.54134787]
[1751988241223,0.1812249,150.73,150.72,12.54134787]
[1751988246821,0.1812249,150.73,150.72,6.63481954]
[1751988247118,0.1812249,150.73,150.72,12.54134787]
[1751988249744,0.1812249,150.73,150.72,77.47992506]
[1751988249955,0.1812249,150.73,150.72,78.14340701]
[1751988251839,0.1812249,150.73,150.72,31.8268684]
[1751988252038,0.1812249,150.73,150.72,5.90652834]
[1751988252360,0.1812249,150.73,150.72,12.54134787]
[1751988254555,0.1812249,150.73,150.72,5.90652834]
[1751988256228,0.1812249,150.73,150.72,1e-08]
[1751988257122,7.54636585,150.73,150.72,1e-08]
[1751988257559,0.1812249,150.73,150.72,1e-08]
[1751988258244,0.1812249,150.73,150.72,5.90652834]
[1751988260140,0.1812249,150.73,150.72,12.54134787]
[1751988260852,0.32012505,150.73,150.72,12.54134787]
[1751988261285,0.19890015,150.73,150.72,12.54134787]
[1751988261438,0.19890015,150.73,150.72,5.90652834]
[1751988261851,0.19890015,150.73,150.72,1e-08]
[1751988262048,7.56362494,150.73,150.72,1e-08]
[1751988263849,0.19890015,150.73,150.72,5.90652834]
[1751988264049,0.19890015,150.73,150.72,1e-08]
[1751988264251,20.10500521,150.73,150.72,1e-08]
[1751988270268,19.39686335,150.73,150.72,1e-08]
[1751988271088,13.49033502,150.73,150.72,1e-08]
[1751988271271,19.39686335,150.73,150.72,1e-08]
[1751988272266,53.23686335,150.73,150.72,1e-08]
[1751988272478,19.39686335,150.73,150.72,1e-08]
[1751988272676,53.23686335,150.73,150.72,1e-08]
[1751988274068,0.1420187,150.74,150.72,5.90652834]
[1751988274387,0.1420187,150.74,150.72,1e-08]
[1751988274559,0.1420187,150.74,150.72,5.90652834]
[1751988274882,0.1420187,150.74,150.73,5.90652833]
[1751988276373,0.1420187,150.74,150.73,12.54090768]
[1751988276569,0.1420187,150.74,150.73,5.90652833]
[1751988277877,0.2020187,150.74,150.73,5.90652833]
[1751988278178,0.2020187,150.74,150.73,12.54090768]
[1751988280685,0.2020187,150.74,150.73,5.90652833]
[1751988280990,0.32719815,150.74,150.72,5.90652834]
[1751988281183,0.32719815,150.74,150.72,1e-08]
[1751988281504,6.81923828,150.74,150.72,1e-08]
[1751988281686,0.18517945,150.74,150.72,1e-08]
[1751988286077,6.81919998,150.74,150.72,1e-08]
[1751988287180,0.18517945,150.74,150.72,1e-08]
[1751988287596,6.81912687,150.74,150.72,1e-08]
[1751988288476,13.25853968,150.73,150.72,1e-08]
[1751988288996,6.81912687,150.74,150.72,1e-08]
[1751988288997,12.7256552,150.74,150.72,1e-08]
[1751988290078,13.25857356,150.73,150.72,1e-08]
[1751988290289,19.89295291,150.73,150.72,1e-08]
[1751988292180,13.98642458,150.73,150.72,1e-08]
[1751988292382,6.63437935,150.73,150.72,1e-08]
[1751988293589,0.18517945,150.74,150.72,5.90652834]
[1751988293986,0.18517945,150.74,150.72,1e-08]
[1751988294510,7.53888667,150.74,150.72,1e-08]
[1751988294895,7.53888667,150.74,150.72,5.90652834]
[1751988295100,0.18517945,150.74,150.73,5.90652833]
[1751988296978,0.18517945,150.74,150.73,12.54090768]
[1751988298087,0.18517945,150.74,150.73,31.19055654]
[1751988299601,0.18517945,150.74,150.73,12.54090768]
[1751988301008,0.31739286,150.74,150.72,1e-08]
[1751988301211,0.31739286,150.74,150.72,5.90652834]
[1751988301386,0.19221341,150.74,150.72,5.90652834]
[1751988302300,6.82633332,150.74,150.72,5.90652834]
[1751988302615,0.19221341,150.74,150.72,5.90652834]
[1751988303323,6.82620127,150.74,150.72,1e-08]
[1751988303487,0.19221341,150.74,150.72,1e-08]
[1751988303788,0.19221341,150.74,150.72,5.90652834]
[1751988303984,6.82623451,150.74,150.72,5.90652834]
[1751988304583,0.19221341,150.74,150.72,5.90652834]
[1751988305022,6.82616009,150.74,150.72,5.90652834]
[1751988305223,6.8261527,150.74,150.72,5.90652834]
[1751988305384,0.19221341,150.74,150.72,5.90652834]
[1751988307923,6.82624016,150.74,150.72,1e-08]
[1751988308217,12.73276849,150.74,150.72,1e-08]
[1751988308420,7.35159887,150.73,150.72,1e-08]
[1751988309623,6.82624016,150.74,150.72,1e-08]
[1751988312597,0.19221341,150.74,150.72,1e-08]
[1751988312907,0.19221341,150.74,150.72,5.90652834]
[1751988313309,7.54357223,150.74,150.73,5.90652833]
[1751988313839,0.19221341,150.74,150.73,12.54090768]
[1751988314924,0.19221341,150.74,150.73,5.90652833]
[1751988315422,0.19221341,150.74,150.72,5.90652834]
[1751988315611,0.19221341,150.74,150.72,1e-08]
[1751988315933,14.18171182,150.74,150.72,1e-08]
[1751988316230,6.82624701,150.74,150.72,1e-08]
[1751988316527,7.3573179,150.73,150.72,1e-08]
[1751988317626,0.19221341,150.74,150.72,1e-08]
[1751988318729,0.19221341,150.74,150.72,5.90652834]
[1751988319032,0.19221341,150.74,150.72,1e-08]
[1751988319419,6.82615384,150.74,150.72,1e-08]
[1751988319739,7.36126964,150.73,150.72,1e-08]
[1751988320426,0.19221341,150.74,150.72,5.90652834]
[1751988320733,0.19221341,150.74,150.72,1e-08]
[1751988320928,0.12986762,150.73,150.72,1e-08]
[1751988321232,7.49128411,150.73,150.72,1e-08]
[1751988321433,13.39781244,150.73,150.72,1e-08]
[1751988322637,20.03219179,150.73,150.72,1e-08]
[1751988323322,7.49128411,150.73,150.72,1e-08]
[1751988323523,7.55128411,150.73,150.72,1e-08]
[1751988329636,7.553335,150.73,150.72,1e-08]
[1751988331343,20.09424268,150.73,150.72,1e-08]
[1751988331744,13.45986333,150.73,150.72,1e-08]
[1751988331946,7.553335,150.73,150.72,1e-08]
[1751988333055,7.553335,150.73,150.72,5.90652834]
[1751988333355,7.553335,150.73,150.72,1e-08]
[1751988335451,14.18771435,150.73,150.72,1e-08]
[1751988335643,20.09424268,150.73,150.72,1e-08]
[1751988337141,14.18771435,150.73,150.72,1e-08]
[1751988337656,7.553335,150.73,150.72,1e-08]
[1751988338155,14.18771435,150.73,150.72,1e-08]
[1751988338354,7.553335,150.73,150.72,1e-08]
[1751988340866,7.69449443,150.73,150.72,1e-08]
[1751988341378,7.56462681,150.73,150.72,1e-08]
[1751988341556,14.19900616,150.73,150.72,1e-08]
[1751988341738,20.10553449,150.73,150.72,1e-08]
[1751988344754,7.56462681,150.73,150.72,1e-08]
[1751988344958,7.56462681,150.73,150.72,5.90652834]
[1751988347270,0.20115943,150.73,150.72,5.90652834]
[1751988347445,7.56817697,150.73,150.72,5.90652834]
[1751988347972,33.56817697,150.73,150.72,1e-08]
[1751988348658,46.10908465,150.73,150.72,1e-08]
[1751988349375,20.10908465,150.73,150.72,1e-08]
[1751988352373,7.56817697,150.73,150.72,1e-08]
[1751988352956,33.56817697,150.73,150.72,1e-08]
[1751988353477,33.56817697,150.73,150.72,5.90652834]